bitfinex/quotes_BTCUSD_20251212
["timestamp","ask_amount","ask_price","bid_price","bid_amount"]
[1765551852125,0.01724,92295.0,92293.0,0.00150094]
[1765551852330,0.01724,92295.0,92292.0,0.22753814]
[1765551852462,0.01724,92294.0,92293.0,0.00161287]
[1765551853487,1.04844207,92340.0,92293.0,0.00161287]
[1765551853488,0.0203213,92325.0,92321.0,0.01083177]
[1765551853682,0.00949,92325.0,92314.0,0.01197]
[1765551853886,0.01083212,92318.0,92313.0,0.01083271]
[1765551854113,0.01083177,92321.0,92317.0,0.01083224]
[1765551854348,0.01083411,92301.0,92295.0,0.01083482]
[1765551854486,0.01724,92318.0,92297.0,0.01083458]
[1765551854487,0.01083341,92307.0,92297.0,0.01083458]
[1765551854856,0.01083317,92309.0,92303.0,0.01083388]
[1765551854984,0.01724,92307.0,92304.0,0.01083376]
[1765551855188,0.01724,92313.0,92311.0,0.01083294]
[1765551855373,0.01724,92313.0,92312.0,0.21665655]
[1765551855574,0.01724,92313.0,92311.0,0.01083294]
[1765551855987,0.02807271,92313.0,92310.0,0.21666002]
[1765551856184,0.02807271,92313.0,92309.0,0.01083317]
[1765551856418,0.01724,92313.0,92310.0,0.01083306]
[1765551856619,0.07745968,92313.0,92309.0,0.01083317]
[1765551856829,0.07745968,92313.0,92310.0,0.01083306]
[1765551857520,0.01083282,92312.0,92307.0,0.01083341]
[1765551857725,0.21668941,92298.0,92287.0,0.02280576]
[1765551857946,0.21668941,92298.0,92287.0,0.01197]
[1765551858063,0.29749941,92298.0,92282.0,0.01133]
[1765551858261,0.27558941,92298.0,92285.0,0.01083599]
[1765551858558,0.21668941,92298.0,92286.0,0.01083587]
[1765551858734,0.21668941,92298.0,92289.0,0.21670821]
[1765551858908,0.23171941,92298.0,92291.0,0.01083529]
[1765551859121,0.30211817,92298.0,92289.0,0.01083552]
[1765551859511,0.30211817,92298.0,92288.0,0.21671063]
[1765551859512,0.2275139,92303.0,92288.0,0.21671063]
[1765551859513,0.01083306,92310.0,92297.0,0.01736957]
[1765551859754,0.010834,92302.0,92298.0,0.01191]
[1765551859954,0.01083329,92308.0,92303.0,0.21667768]
[1765551860311,0.01083411,92301.0,92297.0,0.0003867]
[1765551860512,0.22289941,92298.0,92297.0,0.0003867]
[1765551860711,0.23792941,92298.0,92297.0,0.0003867]
[1765551860966,0.22289941,92298.0,92297.0,0.0003867]
[1765551861222,0.01083411,92301.0,92297.0,0.0003867]
[1765551861223,0.00621,92309.0,92303.0,0.01083388]
[1765551861467,0.01083235,92316.0,92310.0,0.01083306]
[1765551861715,0.01724,92312.0,92311.0,0.01083294]
[1765551861937,0.01724,92312.0,92310.0,0.01083306]
[1765551862159,0.01724,92312.0,92310.0,0.2274937]
[1765551862616,0.23389731,92312.0,92306.0,0.01083353]
[1765551862812,0.01724,92312.0,92308.0,0.01083329]
[1765551863042,0.02024,92312.0,92309.0,0.22749676]
[1765551863283,0.02024,92312.0,92309.0,0.01083317]
[1765551863534,0.02024,92312.0,92310.0,0.21666125]
[1765551863782,0.02024,92312.0,92309.0,0.01083317]
[1765551864024,0.02024,92312.0,92310.0,0.21666125]
[1765551864537,0.01083423,92300.0,92297.0,0.0003867]
[1765551864775,0.02807423,92300.0,92297.0,0.0003867]
[1765551865271,0.02807423,92300.0,92297.0,0.22791303]
[1765551865506,0.02807423,92300.0,92297.0,0.0003867]
[1765551865786,0.23171941,92298.0,92297.0,0.0003867]
[1765551866053,0.34702352,92298.0,92297.0,0.0003867]
[1765551866276,0.36893352,92298.0,92297.0,0.0003867]
[1765551866534,0.37904227,92298.0,92297.0,0.0003867]
[1765551867016,0.66974227,92298.0,92297.0,0.0003867]
[1765551867260,0.7430382,92298.0,92297.0,0.0013867]
[1765551867703,0.7430382,92298.0,92280.0,0.0002]
[1765551867704,0.30994772,92281.0,92280.0,0.0002]
[1765551867930,0.35232647,92281.0,92280.0,0.00026691]
[1765551868154,0.398755,92281.0,92280.0,0.00026691]
[1765551868591,0.355555,92281.0,92280.0,0.00026691]
[1765551868800,0.398755,92281.0,92280.0,0.00026691]
[1765551869215,0.398755,92281.0,92260.0,0.0002]
[1765551869216,0.30996416,92274.0,92260.0,0.0002]
[1765551869391,0.60067121,92271.0,92260.0,0.0002]
[1765551869554,0.64908852,92271.0,92270.0,0.00031656]
[1765551869753,0.67099852,92271.0,92270.0,0.00031656]
[1765551871024,0.67099852,92271.0,92260.0,0.0002]
[1765551871025,0.60067591,92269.0,92260.0,0.0002]
[1765551871196,0.60067591,92269.0,92268.0,0.00020663]
[1765551871197,0.73637925,92269.0,92268.0,0.00020663]
[1765551871387,0.78156781,92269.0,92268.0,0.00020663]
[1765551871591,0.68824322,92269.0,92268.0,0.00020663]
[1765551872229,0.68824322,92269.0,92250.0,0.0002]
[1765551872230,0.05001839,92252.0,92250.0,0.0002]
[1765551872480,0.33110695,92251.0,92250.0,0.00031665]
[1765551872652,0.35239695,92251.0,92250.0,0.00031665]
[1765551873005,0.30918782,92251.0,92250.0,0.00031665]
[1765551873282,0.2990882,92251.0,92250.0,0.00031665]
[1765551873711,0.3209982,92251.0,92250.0,0.00031665]
[1765551873868,0.33109268,92251.0,92250.0,0.00031665]
[1765551874070,0.3209982,92251.0,92250.0,0.00031665]
[1765551875255,0.24906981,92251.0,92250.0,0.00031665]
[1765551875464,0.03227,92251.0,92250.0,0.00031665]
[1765551875679,0.001,92251.0,92250.0,0.23070137]
[1765551875887,0.05518,92251.0,92250.0,0.00406003]
[1765551876123,0.03327,92251.0,92250.0,0.00406003]
[1765551876311,0.13220085,92251.0,92250.0,0.00406003]
[1765551876746,0.05518,92251.0,92250.0,0.00406003]
[1765551877146,0.001,92251.0,92250.0,0.00406003]
[1765551877379,0.01824,92251.0,92250.0,0.00406003]
[1765551878282,0.01724,92251.0,92250.0,0.00406003]
[1765551878470,0.01083975,92253.0,92250.0,0.00406003]
[1765551878673,0.01724,92251.0,92250.0,0.00031665]
[1765551878912,0.05640545,92251.0,92250.0,0.00031665]
[1765551879113,0.05640545,92251.0,92250.0,0.00131665]
[1765551879352,0.07731545,92251.0,92250.0,0.00131665]
[1765551879558,0.05540545,92251.0,92250.0,0.00131665]
[1765551879763,0.27097981,92251.0,92250.0,0.00031665]
[1765551880153,0.23182981,92251.0,92250.0,0.00131665]
[1765551880354,0.24906981,92251.0,92250.0,0.00131665]
[1765551880711,0.001,92253.0,92250.0,0.21711862]
[1765551880926,0.001,92253.0,92250.0,0.00031665]
[1765551881131,0.01503,92251.0,92250.0,0.00031665]
[1765551881981,0.03694,92251.0,92250.0,0.00031665]
[1765551882205,0.04716702,92251.0,92250.0,0.00031665]
[1765551882632,0.04816702,92251.0,92250.0,0.00031665]
[1765551883057,0.01824,92251.0,92250.0,0.00031665]
[1765551883482,0.01724,92251.0,92250.0,0.00031665]
[1765551883907,0.24906981,92251.0,92250.0,0.00131665]
[1765551884109,0.03227,92251.0,92250.0,0.22086219]
[1765551884515,0.03227,92251.0,92250.0,0.00406003]
[1765551884689,0.03227,92251.0,92250.0,0.22086219]
[1765551885029,0.32835006,92251.0,92250.0,0.00306003]
[1765551885443,0.37155006,92251.0,92250.0,0.00306003]
[1765551885620,0.42156845,92251.0,92250.0,0.00406003]
[1765551886067,0.67106845,92251.0,92250.0,0.00406003]
[1765551886302,0.72434518,92251.0,92250.0,3e-08]
[1765551886533,0.72434518,92251.0,92230.0,0.0002]
[1765551886534,0.60076522,92231.0,92230.0,0.0002]
[1765551886758,0.60076522,92231.0,92203.0,0.01084563]
[1765551886759,0.55077034,92221.0,92203.0,0.01084563]
[1765551886962,2.59452873,92221.0,92220.0,0.00058938]
[1765551887172,0.99471773,92221.0,92220.0,0.00058938]
[1765551887374,0.34071839,92221.0,92220.0,0.00058938]
[1765551887624,0.30794,92221.0,92220.0,0.00058938]
[1765551887843,0.2907,92221.0,92220.0,0.00058938]
[1765551888063,0.01724,92221.0,92220.0,0.00058938]
[1765551888709,0.05507,92221.0,92220.0,0.00058938]
[1765551888940,0.312925,92221.0,92220.0,0.00058938]
[1765551889205,0.275095,92221.0,92220.0,0.00058938]
[1765551889447,0.01084292,92226.0,92220.0,0.00058938]
[1765551889678,0.01724,92221.0,92220.0,0.00058938]
[1765551890081,0.01084292,92226.0,92220.0,0.01143301]
[1765551890284,0.04390298,92221.0,92220.0,0.00058938]
[1765551890610,0.03316,92221.0,92220.0,0.00058938]
[1765551890819,0.05507,92221.0,92220.0,0.00058938]
[1765551891036,0.943983,92221.0,92220.0,0.00058938]
[1765551891248,0.987183,92221.0,92220.0,0.00058938]
[1765551891679,0.402677,92221.0,92220.0,0.00058938]
[1765551892535,0.385437,92221.0,92220.0,0.00058938]
[1765551892762,0.359477,92221.0,92220.0,0.00145644]
[1765551892971,0.01592,92221.0,92220.0,0.00145644]
[1765551893172,0.165952,92221.0,92220.0,0.00145644]
[1765551893390,0.01892,92221.0,92220.0,0.00145644]
[1765551893597,0.02024,92221.0,92220.0,0.00145644]
[1765551893839,0.003,92221.0,92220.0,0.00145644]
[1765551894038,0.01924,92221.0,92220.0,0.00145644]
[1765551894314,0.05707,92221.0,92220.0,0.00145644]
[1765551894523,0.05907,92221.0,92220.0,0.00145644]
[1765551894739,0.85478,92221.0,92220.0,0.00145644]
[1765551894938,0.593054,92221.0,92220.0,0.00145644]
[1765551895212,0.60315739,92221.0,92220.0,0.00145644]
[1765551895458,0.60315775,92221.0,92220.0,0.00145644]
[1765551895676,0.58554375,92221.0,92220.0,0.00145644]
[1765551895886,0.01924,92221.0,92220.0,0.00145644]
[1765551896093,0.01724,92221.0,92220.0,0.00145644]
[1765551896713,0.02024,92221.0,92220.0,0.00145644]
[1765551897125,0.03616,92221.0,92220.0,0.00145644]
[1765551897442,0.03716,92221.0,92220.0,0.00145644]
[1765551897851,0.004,92221.0,92220.0,0.00145644]
[1765551898065,0.004,92221.0,92220.0,0.00306931]
[1765551898066,0.02124,92221.0,92220.0,0.00306931]
[1765551898276,0.02124,92221.0,92220.0,0.00145644]
[1765551898277,0.05907,92221.0,92220.0,0.00145644]
[1765551898499,0.02124,92221.0,92220.0,0.00145644]
[1765551899140,0.02124,92221.0,92220.0,0.00306931]
[1765551899586,0.01824,92221.0,92220.0,0.00306931]
[1765551900130,0.04602526,92221.0,92220.0,0.00306931]
[1765551900354,0.01824,92221.0,92220.0,0.00306931]
[1765551900563,0.01824,92221.0,92220.0,0.00145644]
[1765551900799,0.02024,92221.0,92220.0,0.00145644]
[1765551901244,0.02024,92221.0,92220.0,0.04132931]
[1765551901245,0.003,92221.0,92220.0,0.04132931]
[1765551901656,0.001,92221.0,92220.0,0.04132931]
[1765551901862,0.001,92221.0,92220.0,0.00306931]
[1765551902518,0.00621,92223.0,92220.0,0.00306931]
[1765551902519,0.00621,92223.0,92221.0,0.21687034]
[1765551903024,0.22767091,92239.0,92230.0,0.21684918]
[1765551903197,0.01084175,92236.0,92232.0,0.01084222]
[1765551903397,0.01022702,92235.0,92232.0,0.22768608]
[1765551903629,0.01084292,92226.0,92223.0,0.00161287]
[1765551903870,0.22771022,92223.0,92220.0,0.00158938]
[1765551904082,0.01022702,92222.0,92220.0,0.00058938]
[1765551904288,0.00621,92224.0,92221.0,0.21687034]
[1765551904489,0.03256503,92269.0,92221.0,0.21687034]
[1765551904490,0.01724,92223.0,92221.0,0.00161287]
[1765551904901,0.04281786,92223.0,92221.0,0.00161287]
[1765551905080,0.23410659,92223.0,92221.0,0.00161287]
[1765551905303,0.24494987,92223.0,92220.0,0.00058938]
[1765551905544,0.23279034,92221.0,92220.0,0.00058938]
[1765551905753,0.01592,92221.0,92220.0,0.00058938]
[1765551906357,0.1038785,92221.0,92220.0,0.00058938]
[1765551906565,0.02614702,92221.0,92220.0,0.00058938]
[1765551907176,0.01022702,92221.0,92220.0,0.00058938]
[1765551907379,0.01022702,92222.0,92220.0,0.00058938]
[1765551907586,0.01824,92223.0,92221.0,0.21687034]
[1765551908016,0.02846702,92223.0,92220.0,0.01143301]
[1765551908452,0.01824,92223.0,92221.0,0.21687034]
[1765551908664,0.001,92223.0,92222.0,0.01563]
[1765551908873,0.2230318,92242.0,92222.0,0.01563]
[1765551908874,0.01012796,92236.0,92235.0,0.01084187]
[1765551909090,0.01012708,92245.0,92244.0,0.21681626]
[1765551909316,0.02328814,92254.0,92244.0,0.21681626]
[1765551909317,0.0579217,92269.0,92244.0,0.21681626]
[1765551909318,0.01083858,92263.0,92256.0,0.22762675]
[1765551909535,0.01022702,92262.0,92259.0,0.01083905]
[1765551909759,0.01083693,92277.0,92269.0,0.01083787]
[1765551909970,0.01724,92271.0,92270.0,0.21675517]
[1765551910184,0.01724,92271.0,92269.0,0.01083787]
[1765551910442,0.01724,92271.0,92269.0,0.22759453]
[1765551910652,0.01735633,92271.0,92269.0,0.23891453]
[1765551910886,0.01735633,92271.0,92269.0,0.22759453]
[1765551911104,0.01735633,92271.0,92267.0,0.01083811]
[1765551911313,0.02340974,92270.0,92266.0,0.01083822]
[1765551911517,0.01704811,92267.0,92263.0,0.01083858]
[1765551911752,0.01083858,92263.0,92259.0,0.00161287]
[1765551911981,0.01083869,92262.0,92253.0,0.01083975]
[1765551912207,0.0108394,92256.0,92252.0,0.01083987]
[1765551912422,0.0108394,92256.0,92236.0,0.02263]
[1765551912423,0.01084081,92244.0,92239.0,0.0108414]
[1765551912656,0.02479828,92244.0,92239.0,0.00161287]
[1765551912866,0.01084093,92243.0,92240.0,0.01084128]
[1765551913072,0.003,92245.0,92242.0,0.01084104]
[1765551913489,0.003,92245.0,92243.0,0.21681862]
[1765551913935,0.01724,92244.0,92243.0,0.22765955]
[1765551914120,0.01724,92244.0,92227.0,0.01084281]
[1765551914121,0.0108421,92233.0,92227.0,0.01084281]
[1765551914332,0.01705269,92228.0,92227.0,0.00038938]
[1765551914532,0.01724,92228.0,92227.0,0.00038938]
[1765551914730,0.01724,92228.0,92227.0,0.00105408]
[1765551915279,0.06146406,92228.0,92227.0,0.00105408]
[1765551915883,0.01724,92228.0,92227.0,0.00105408]
[1765551916327,0.01724,92228.0,92227.0,0.00705408]
[1765551917259,0.03316,92228.0,92227.0,0.01205408]
[1765551917389,0.01724,92228.0,92227.0,0.01205408]
[1765551918310,0.08359565,92228.0,92227.0,0.01205408]
[1765551918513,0.15552404,92228.0,92227.0,0.01205408]
[1765551918713,0.08247839,92228.0,92227.0,0.01205408]
[1765551919118,0.10438839,92228.0,92227.0,0.01205408]
[1765551919514,2.10438839,92228.0,92227.0,0.01205408]
[1765551919718,1.37075939,92228.0,92227.0,0.00705408]
[1765551920096,1.45892039,92228.0,92227.0,0.00705408]
[1765551920340,0.37417839,92228.0,92227.0,0.00705408]
[1765551920545,0.48784539,92228.0,92227.0,0.00705408]
[1765551920752,0.48684539,92228.0,92227.0,0.00705408]
[1765551920984,0.01084245,92230.0,92227.0,0.00705408]
[1765551921197,0.00621,92237.0,92227.0,0.00705408]
[1765551921198,0.01824,92228.0,92227.0,0.01884506]
[1765551921406,0.001,92228.0,92227.0,0.02846506]
[1765551921612,0.001,92228.0,92227.0,0.05015068]
[1765551922067,0.001,92228.0,92227.0,0.00200225]
[1765551922280,0.41605388,92228.0,92227.0,0.00200225]
[1765551922487,0.41605388,92228.0,92227.0,0.00038938]
[1765551922488,0.49408019,92228.0,92227.0,0.00038938]
[1765551922702,0.50928019,92228.0,92227.0,0.00038938]
[1765551923125,0.58120858,92228.0,92227.0,0.00038938]
[1765551923324,0.55929858,92228.0,92227.0,0.00038938]
[1765551923531,0.58120858,92228.0,92227.0,0.00038938]
[1765551923946,0.53828227,92228.0,92227.0,0.00038938]
[1765551924793,0.001,92228.0,92227.0,0.00038938]
[1765551925002,0.01824,92228.0,92227.0,0.00200225]
[1765551925229,0.30154128,92240.0,92237.0,0.01084163]
[1765551925436,0.01724,92239.0,92237.0,0.01084163]
[1765551925638,0.01084151,92238.0,92235.0,0.01084187]
[1765551925846,0.01022702,92239.0,92236.0,0.21683507]
[1765551926086,0.01724,92237.0,92235.0,0.21683742]
[1765551926291,0.01724,92237.0,92235.0,0.21845029]
[1765551926507,0.22768847,92232.0,92229.0,0.00060688]
[1765551926708,0.22768847,92232.0,92227.0,0.00038938]
[1765551926709,0.24289163,92230.0,92227.0,0.00038938]
[1765551926956,0.21685388,92228.0,92227.0,0.00038938]
[1765551927172,0.23205388,92228.0,92227.0,0.00038938]
[1765551927440,0.22769163,92230.0,92227.0,0.00105408]
[1765551927670,0.21685388,92228.0,92227.0,0.00038938]
[1765551927887,0.22769163,92230.0,92227.0,0.00038938]
[1765551928118,0.01022702,92229.0,92227.0,0.00038938]
[1765551928336,0.26449883,92228.0,92227.0,0.00038938]
[1765551928545,0.27969883,92228.0,92227.0,0.00038938]
[1765551928978,0.28069883,92228.0,92227.0,0.00038938]
[1765551929402,0.30260883,92228.0,92227.0,0.00038938]
[1765551929628,0.23205388,92228.0,92227.0,0.00038938]
[1765551929842,0.21685388,92228.0,92227.0,0.00038938]
[1765551930082,0.22769163,92230.0,92227.0,0.00038938]
[1765551930296,0.01022702,92229.0,92227.0,0.01284506]
[1765551930504,0.2907,92240.0,92232.0,0.01084222]
[1765551930751,0.02894785,92259.0,92232.0,0.01084222]
[1765551930752,0.01083963,92254.0,92237.0,0.01562]
[1765551930978,0.21679746,92252.0,92248.0,0.01084034]
[1765551931193,0.21679746,92252.0,92241.0,0.01236]
[1765551931194,0.21680216,92250.0,92241.0,0.02320116]
[1765551931413,0.21680216,92250.0,92242.0,0.21682079]
[1765551931414,0.01084057,92246.0,92242.0,0.21682079]
[1765551931658,0.01084057,92246.0,92241.0,0.01084116]
[1765551931659,0.01084128,92240.0,92237.0,0.00161287]
[1765551931900,0.21682802,92239.0,92237.0,0.00161287]
[1765551932157,0.21682802,92239.0,92227.0,0.00038938]
[1765551932158,0.001,92228.0,92227.0,0.00038938]
[1765551932401,0.001,92228.0,92227.0,0.00200225]
[1765551932636,0.001,92228.0,92227.0,0.04168225]
[1765551932959,0.001,92228.0,92227.0,0.00038938]
[1765551932960,0.23509388,92228.0,92227.0,0.00038938]
[1765551933227,0.58975017,92228.0,92227.0,0.00038938]
[1765551933473,0.58975017,92228.0,92227.0,0.00105408]
[1765551933474,0.52479388,92228.0,92227.0,0.00105408]
[1765551934197,0.53999388,92228.0,92227.0,0.00105408]
[1765551934455,0.56190388,92228.0,92227.0,0.00105408]
[1765551934687,0.58274965,92228.0,92227.0,0.00105408]
[1765551935476,0.56190388,92228.0,92227.0,0.00105408]
[1765551936498,0.53999388,92228.0,92227.0,0.00105408]
[1765551936654,0.52479388,92228.0,92227.0,0.00105408]
[1765551937146,0.21685388,92228.0,92227.0,0.00105408]
[1765551937355,0.21785388,92228.0,92227.0,0.00105408]
[1765551937906,0.25496388,92228.0,92227.0,0.00105408]
[1765551938488,0.54566388,92228.0,92227.0,0.00105408]
[1765551940078,0.54466388,92228.0,92227.0,0.00105408]
[1765551940481,0.52275388,92228.0,92227.0,0.00105408]
[1765551940693,0.59468227,92228.0,92227.0,0.00105408]
[1765551940872,0.55758873,92221.0,92220.0,0.0002]
[1765551941029,0.5731766,92221.0,92220.0,0.0002]
[1765551941223,0.5950866,92221.0,92220.0,0.0002]
[1765551942836,0.5980866,92221.0,92220.0,0.0002]
[1765551944683,0.5609766,92221.0,92220.0,0.0002]
[1765551945140,0.29408787,92221.0,92220.0,0.0002]
[1765551945356,0.39434482,92221.0,92220.0,0.0002]
[1765551945771,0.29408787,92221.0,92220.0,0.0002]
[1765551945991,0.32819787,92221.0,92220.0,0.0002]
[1765551946416,0.30728787,92221.0,92220.0,0.0002]
[1765551946622,0.32919787,92221.0,92220.0,0.0002]
[1765551947029,0.37821626,92221.0,92220.0,0.0002]
[1765551947244,0.48388605,92221.0,92220.0,0.0002]
[1765551947731,0.49502414,92221.0,92220.0,0.0002]
[1765551948330,0.52619821,92221.0,92220.0,0.0002]
[1765551948531,0.00138787,92221.0,92220.0,0.0002]
[1765551948739,0.00138787,92221.0,92220.0,0.00181287]
[1765551949162,0.00138787,92221.0,92220.0,0.04137287]
[1765551949594,0.00238787,92221.0,92220.0,0.04137287]
[1765551949998,0.00138787,92221.0,92220.0,0.04137287]
[1765551950194,0.00038787,92221.0,92220.0,0.04137287]
[1765551950809,0.00138787,92221.0,92220.0,0.04437287]
[1765551951398,0.00038787,92221.0,92220.0,0.04137287]
[1765551951816,0.01724,92260.0,92255.0,0.01083952]
[1765551952024,0.01724,92260.0,92256.0,0.0108394]
[1765551952226,0.02807893,92260.0,92256.0,0.0108394]
[1765551952400,0.01083916,92258.0,92254.0,0.02038963]
[1765551952604,0.01724,92260.0,92256.0,0.0108394]
[1765551952834,0.22759155,92271.0,92262.0,0.22761202]
[1765551952996,0.01083811,92267.0,92263.0,0.01083858]
[1765551953199,0.01083858,92263.0,92259.0,0.01083905]
[1765551953417,0.01083846,92264.0,92261.0,0.01083881]
[1765551953620,0.01083869,92262.0,92256.0,0.01245227]
[1765551953823,0.01083869,92262.0,92256.0,0.00161287]
[1765551953824,0.22762141,92259.0,92256.0,0.00161287]
[1765551954029,0.22762065,92259.0,92256.0,0.00161287]
[1765551954253,0.01083952,92255.0,92250.0,0.0108401]
[1765551954457,0.21680245,92250.0,92248.0,0.00955]
[1765551954662,0.21682097,92242.0,92241.0,0.01164]
[1765551954858,0.43348326,92276.0,92241.0,0.01164]
[1765551954859,0.21679041,92255.0,92247.0,0.01084046]
[1765551955056,0.01083881,92261.0,92257.0,0.01083928]
[1765551955260,0.01022702,92260.0,92257.0,0.01083928]
[1765551955475,0.01083905,92259.0,92255.0,0.01083952]
[1765551955682,0.01724,92258.0,92254.0,0.21679214]
[1765551956029,0.02807916,92258.0,92255.0,0.01083952]
[1765551956236,0.02807916,92258.0,92254.0,0.01083963]
[1765551956442,0.01083928,92257.0,92252.0,0.22763689]
[1765551956647,0.01083928,92257.0,92248.0,0.21780686]
[1765551956648,0.21680377,92250.0,92248.0,0.001]
[1765551956852,0.32672702,92249.0,92248.0,0.001]
[1765551957021,0.33841,92249.0,92248.0,0.001]
[1765551957682,0.3165,92249.0,92248.0,0.001]
[1765551957885,0.33841,92249.0,92248.0,0.001]
[1765551959231,0.01084281,92227.0,92223.0,0.01084328]
[1765551959436,0.01084257,92229.0,92224.0,0.01084316]
[1765551959661,0.01084257,92229.0,92225.0,0.01084304]
[1765551960231,0.01084281,92227.0,92224.0,0.01084316]
[1765551960438,0.01084281,92227.0,92223.0,0.00011676]
[1765551960439,0.01631,92225.0,92223.0,0.00011676]
[1765551960668,0.25041328,92224.0,92223.0,0.00011676]
[1765551960870,0.30043167,92224.0,92223.0,0.00011676]
[1765551961070,0.43165686,92224.0,92223.0,0.00011676]
[1765551961463,0.32234167,92224.0,92223.0,0.00011676]
[1765551961670,0.30043167,92224.0,92223.0,0.00011676]
[1765551961847,0.32234167,92224.0,92223.0,0.00011676]
[1765551962529,0.30043167,92224.0,92223.0,0.00011676]
[1765551962881,0.32234167,92224.0,92223.0,0.00011676]
[1765551963096,0.42459184,92224.0,92223.0,0.00011676]
[1765551963730,0.32234167,92224.0,92223.0,0.00011676]
[1765551963902,0.61304167,92224.0,92223.0,0.00011676]
[1765551965566,0.61404167,92224.0,92223.0,0.00011676]
[1765551965768,0.59213167,92224.0,92223.0,0.00011676]
[1765551965972,0.61604167,92224.0,92223.0,0.00011676]
[1765551966174,0.72654929,92224.0,92223.0,0.00011676]
[1765551966795,0.61604167,92224.0,92223.0,0.00011676]
[1765551967006,0.59413167,92224.0,92223.0,0.00011676]
[1765551967448,0.23617328,92224.0,92223.0,0.00011676]
[1765551967655,0.02024,92224.0,92223.0,0.00011676]
[1765551967853,0.23710328,92224.0,92223.0,0.00011676]
[1765551968058,0.23610328,92224.0,92223.0,0.00011676]
[1765551968413,0.25441328,92224.0,92223.0,0.00011676]
[1765551968648,0.23810328,92224.0,92223.0,0.00011676]
[1765551969028,0.23610328,92224.0,92223.0,0.00011676]
[1765551969250,0.32435357,92224.0,92223.0,0.00011676]
[1765551969429,0.23410328,92224.0,92223.0,0.00111676]
[1765551969860,0.23510328,92224.0,92223.0,0.00111676]
[1765551970239,0.001,92224.0,92223.0,0.01821963]
[1765551970452,0.01724,92228.0,92226.0,0.21685858]
[1765551970647,0.01724,92232.0,92229.0,0.01084257]
[1765551970893,0.01724,92232.0,92227.0,0.01164]
[1765551970894,0.01084245,92230.0,92227.0,0.01164]
[1765551971259,0.01084104,92242.0,92234.0,0.21683879]
[1765551971500,0.01084104,92242.0,92231.0,0.01084234]
[1765551971501,0.01084128,92240.0,92235.0,0.01084187]
[1765551971706,0.31878116,92241.0,92229.0,0.01084257]
[1765551971707,0.21683507,92236.0,92229.0,0.01084257]
[1765551971882,0.01084222,92232.0,92229.0,0.01084257]
[1765551972244,0.01084187,92235.0,92231.0,0.01084234]
[1765551972363,0.01084175,92236.0,92232.0,0.01084222]
[1765551972577,0.23387982,92239.0,92234.0,0.01084198]
[1765551972776,0.22767435,92237.0,92234.0,0.00161287]
[1765551972984,0.01084163,92237.0,92234.0,0.00161287]
[1765551973179,0.01084151,92238.0,92234.0,0.01245485]
[1765551973385,0.01084128,92240.0,92236.0,0.01084175]
[1765551973721,0.01084128,92240.0,92232.0,0.01084222]
[1765551973722,0.0108414,92239.0,92220.0,0.0002]
[1765551974071,0.55758167,92224.0,92220.0,0.0002]
[1765551974184,0.55758167,92224.0,92207.0,0.01084516]
[1765551974185,0.01084434,92214.0,92211.0,0.01164]
[1765551974386,0.01084434,92214.0,92212.0,0.21689151]
[1765551974387,0.00011624,92214.0,92212.0,0.21689151]
[1765551974617,0.00011624,92214.0,92213.0,0.03717891]
[1765551974834,0.00011624,92214.0,92213.0,0.06286178]
[1765551975527,0.00011624,92214.0,92213.0,0.05440073]
[1765551975762,0.00011624,92214.0,92213.0,0.06286178]
[1765551976185,0.00011624,92214.0,92213.0,0.06886178]
[1765551976934,0.00011624,92214.0,92213.0,0.04717287]
[1765551977196,0.00011624,92214.0,92213.0,0.06886178]
[1765551977520,0.06450282,92246.0,92213.0,0.06886178]
[1765551977521,0.05366225,92246.0,92243.0,0.01084093]
[1765551977741,0.0537789,92246.0,92245.0,0.02865]
[1765551978791,0.0537789,92246.0,92245.0,0.01242]
[1765551979560,0.0537789,92246.0,92245.0,0.05453287]
[1765551980115,0.0547789,92246.0,92245.0,0.05453287]
[1765551980617,0.00111665,92246.0,92245.0,0.42703616]
[1765551980816,0.03255725,92291.0,92288.0,0.01083564]
[1765551980996,9.278e-05,92291.0,92290.0,0.00984]
[1765551981180,9.278e-05,92291.0,92290.0,0.02810287]
[1765551981380,9.278e-05,92291.0,92290.0,0.05195287]
[1765551982827,9.278e-05,92291.0,92290.0,0.04534287]
[1765551983036,9.278e-05,92291.0,92290.0,0.06919287]
[1765551983469,9.278e-05,92291.0,92290.0,0.07219287]
[1765551983691,9.278e-05,92291.0,92290.0,0.36289287]
[1765551983904,0.0004,92330.0,92328.0,0.21661901]
[1765551984121,0.0004,92330.0,92324.0,0.21662839]
[1765551984122,0.00078894,92330.0,92324.0,0.21662839]
[1765551984338,0.00078894,92330.0,92328.0,0.21661901]
[1765551984758,0.00078894,92330.0,92327.0,0.01083106]
[1765551984972,0.01083095,92328.0,92325.0,0.01181]
[1765551985181,0.01161965,92330.0,92322.0,0.21663164]
[1765551985182,0.01083118,92326.0,92322.0,0.01181]
[1765551985390,0.0108313,92325.0,92322.0,0.01181]
[1765551985597,0.01083106,92327.0,92324.0,0.01083141]
[1765551985805,0.01083083,92329.0,92324.0,0.01083141]
[1765551986064,0.01083282,92312.0,92307.0,0.01083341]
[1765551986234,0.01083165,92322.0,92317.0,0.01083224]
[1765551986441,0.0108313,92325.0,92320.0,0.01083188]
[1765551986651,0.01083188,92320.0,92312.0,0.22748714]
[1765551986865,0.01083165,92322.0,92318.0,0.01083212]
[1765551987068,0.01022702,92324.0,92319.0,0.22747035]
[1765551987311,0.01083165,92322.0,92317.0,0.01083224]
[1765551987505,0.01083235,92316.0,92313.0,0.01083271]
[1765551987733,0.010832,92319.0,92314.0,0.01083259]
[1765551987941,0.01083212,92318.0,92315.0,0.01083247]
[1765551988159,0.01083188,92320.0,92317.0,0.01083224]
[1765551988364,0.01083235,92316.0,92309.0,0.01083317]
[1765551988580,0.22747212,92319.0,92311.0,0.01083294]
[1765551988812,0.01083271,92313.0,92309.0,0.01083317]
[1765551989023,0.01083271,92313.0,92308.0,0.01083329]
[1765551989243,0.01083271,92313.0,92309.0,0.01083317]
[1765551989456,0.01083224,92317.0,92313.0,0.01083271]
[1765551989679,0.01083212,92318.0,92315.0,0.01083247]
[1765551989893,0.01083224,92317.0,92314.0,0.01083259]
[1765551990122,0.01083235,92316.0,92313.0,0.01083271]
[1765551990329,0.01083247,92315.0,92312.0,0.01083282]
[1765551990533,0.01083259,92314.0,92309.0,0.01083317]
[1765551990744,0.02323,92327.0,92295.0,0.02385]
[1765551990745,0.216674,92305.0,92295.0,0.02385]
[1765551990959,0.216674,92305.0,92290.0,1.01921701]
[1765551990960,0.00632,92303.0,92300.0,0.01083423]
[1765551991184,0.002,92317.0,92291.0,0.01724]
[1765551991185,0.01083411,92301.0,92297.0,0.01083458]
[1765551991395,0.01083329,92308.0,92297.0,0.01083458]
[1765551991396,0.01083364,92305.0,92301.0,0.01083411]
[1765551991808,0.01083364,92305.0,92254.0,0.05001839]